fUSD/lending_fUSD_20241227
["ID","MTS","AMOUNT","RATE_DAILY","PERIOD"]
[346829651,1735311051193,-332.16448212,0.00011041,2]
[346829652,1735311051203,-500.0,0.00011041,2]
[346829653,1735311051213,-489.63550556,0.00011041,2]
[346829654,1735311051693,-205.14449444,0.00011041,2]
[346829655,1735311051703,-127.10270059,0.00011041,2]
[346829656,1735311051714,-372.89729941,0.00011041,2]
[346829657,1735311051724,-500.0,0.00011041,2]
[346829658,1735311051734,-3105.84,0.00011041,2]
[346829659,1735311051745,-175.57,0.00011041,2]
[346829660,1735311051755,-513.95,0.00011042,2]
[346829661,1735311051765,-500.0,0.00011042,2]
[346829662,1735311051775,-500.0,0.00011042,2]
[346829663,1735311051784,-500.0,0.00011042,2]
[346829664,1735311051794,-500.0,0.00011042,2]
[346829665,1735311051804,-500.0,0.00011042,2]
[346829666,1735311051813,-384.40270059,0.00011042,2]
[346829667,1735311051826,-149.18729941,0.00011042,2]
[346829668,1735311051835,-500.0,0.00011042,2]
[346829669,1735311051849,-1223.36,0.00011042,2]
[346829670,1735311051859,-500.0,0.00011042,2]
[346829671,1735311051868,-500.0,0.00011042,2]
[346829672,1735311051878,-500.0,0.00011042,2]
[346829673,1735311051887,-777.98,0.00011042,2]
[346829674,1735311051897,-500.0,0.00011042,2]
[346829675,1735311051907,-264.32499856,0.00011042,2]
[346829676,1735311052329,-235.67500144,0.00011042,2]
[346829677,1735311052339,-500.0,0.00011042,2]
[346829678,1735311052350,-500.0,0.00011042,2]
[346829679,1735311052360,-592.69945212,0.00011042,2]
[346829680,1735311052370,-363.87164309,0.00011042,2]
[346829681,1735311052382,-136.12835691,0.00011042,2]
[346829682,1735311052392,-500.0,0.00011042,2]
[346829683,1735311052402,-522.77,0.00011042,2]
[346829684,1735311052412,-500.0,0.00011042,2]
[346829685,1735311052422,-500.0,0.00011042,2]
[346829686,1735311052431,-910.85,0.00011042,2]
[346829687,1735311052441,-500.0,0.00011042,2]
[346829688,1735311052451,-651.33,0.00011042,2]
[346829689,1735311052460,-500.0,0.00011042,2]
[346829690,1735311052470,-500.0,0.00011042,2]
[346829691,1735311052480,-500.0,0.00011042,2]
[346829692,1735311052491,-500.0,0.00011042,2]
[346829693,1735311052504,-500.0,0.00011042,2]
[346829694,1735311052514,-741.77,0.00011042,2]
[346829695,1735311052523,-504.61052577,0.00011042,2]
[346829696,1735311052533,-500.0,0.00011042,2]
[346829697,1735311052543,-500.0,0.00011042,2]
[346829698,1735311052553,-500.0,0.00011042,2]
[346829699,1735311052562,-127.04111732,0.00011042,2]
[346829700,1735311052583,-372.95888268,0.00011042,2]
[346829701,1735311052593,-500.0,0.00011042,2]
[346829702,1735311052602,-890.88,0.00011042,2]
[346829703,1735311052611,-500.0,0.00011042,2]
[346829704,1735311052621,-500.0,0.00011042,2]
[346829705,1735311052631,-430.53798321,0.00011042,2]
[346829706,1735311052641,-545.53,0.00011042,2]
[346829707,1735311052651,-500.0,0.00011042,2]
[346829708,1735311052661,-658.56,0.00011042,2]
[346829709,1735311052670,-500.0,0.00011042,2]
[346829710,1735311052680,-500.0,0.00011042,2]
[346829711,1735311052690,-500.0,0.00011042,2]
[346829712,1735311052700,-500.0,0.00011042,2]
[346829713,1735311052710,-500.0,0.00011042,2]
[346829714,1735311052720,-500.0,0.00011042,2]
[346829715,1735311052729,-500.0,0.00011042,2]
[346829716,1735311052739,-500.0,0.00011042,2]
[346829717,1735311052752,-500.0,0.00011042,2]
[346829718,1735311052761,-528.83,0.00011042,2]
[346829719,1735311052771,-1053.7,0.00011042,2]
[346829720,1735311052781,-1149.25,0.00011042,2]
[346829721,1735311052791,-719.69,0.00011042,2]
[346829722,1735311052801,-500.0,0.00011042,2]
[346829723,1735311052810,-670.46,0.00011042,2]
[346829724,1735311052820,-500.0,0.00011042,2]
[346829725,1735311052829,-500.0,0.00011042,2]
[346829726,1735311052842,-500.0,0.00011042,2]
[346829727,1735311052851,-575.26,0.00011042,2]
[346829728,1735311052862,-500.0,0.00011042,2]
[346829729,1735311052871,-500.0,0.00011042,2]
[346829730,1735311052880,-449.99394256,0.00011042,2]
[346829731,1735311052889,-500.0,0.00011042,2]
[346829732,1735311052899,-500.0,0.00011042,2]
[346829733,1735311052909,-500.0,0.00011042,2]
[346829734,1735311052919,-500.0,0.00011042,2]
[346829735,1735311052928,-500.0,0.00011042,2]
[346829736,1735311052938,-500.0,0.00011042,2]
[346829737,1735311052948,-924.57,0.00011042,2]
[346829738,1735311052958,-500.0,0.00011042,2]
[346829739,1735311052967,-500.0,0.00011042,2]
[346829740,1735311052977,-500.0,0.00011042,2]
[346829741,1735311052987,-500.0,0.00011042,2]
[346829742,1735311053000,-500.0,0.00011042,2]
[346829743,1735311053009,-500.0,0.00011042,2]
[346829744,1735311053019,-528.64,0.00011042,2]
[346829745,1735311053029,-500.0,0.00011042,2]
[346829746,1735311053039,-500.0,0.00011042,2]
[346829747,1735311053048,-611.15,0.00011042,2]
[346829748,1735311053058,-1077.62,0.00011042,2]
[346829749,1735311053068,-500.0,0.00011042,2]
[346829750,1735311053078,-655.52,0.00011042,2]
[346829751,1735311053087,-512.46,0.00011042,2]
[346829752,1735311053097,-500.0,0.00011042,2]
[346829753,1735311053106,-1177.46,0.00011042,2]
[346829754,1735311053116,-500.0,0.00011042,2]
[346829755,1735311053126,-500.0,0.00011042,2]
[346829756,1735311053137,-500.0,0.00011042,2]
[346829757,1735311053147,-500.0,0.00011042,2]
[346829758,1735311053157,-500.0,0.00011042,2]
[346829759,1735311053167,-500.0,0.00011042,2]
[346829760,1735311053177,-500.0,0.00011042,2]
[346829761,1735311053186,-500.0,0.00011042,2]
[346829762,1735311053196,-500.0,0.00011042,2]
[346829763,1735311053206,-500.0,0.00011042,2]
[346829764,1735311053215,-500.0,0.00011042,2]
[346829765,1735311053226,-1353.69,0.00011042,2]
[346829766,1735311053235,-500.0,0.00011042,2]
[346829767,1735311053250,-855.06,0.00011042,2]
[346829768,1735311053339,-222.02881883,0.00011042,2]
[346829769,1735311053349,-500.0,0.00011042,2]
[346829770,1735311053359,-1050.22,0.00011042,2]
[346829771,1735311053368,-500.0,0.00011042,2]
[346829772,1735311053377,-649.17140198,0.00011042,2]
[346829773,1735311053387,-500.0,0.00011042,2]
[346829774,1735311053396,-500.0,0.00011042,2]
[346829775,1735311053405,-500.0,0.00011042,2]
[346829776,1735311053415,-500.0,0.00011042,2]
[346829777,1735311053424,-500.0,0.00011042,2]
[346829778,1735311053434,-500.0,0.00011042,2]
[346829779,1735311053443,-500.0,0.00011042,2]
[346829780,1735311053452,-500.0,0.00011042,2]
[346829781,1735311053462,-500.0,0.00011042,2]
[346829782,1735311053471,-500.0,0.00011042,2]
[346829783,1735311053480,-80.14383213,0.00011042,2]
[346829784,1735311053505,-419.85616787,0.00011042,2]
[346829785,1735311053514,-22.09091303,0.00011042,2]
[346829786,1735311053526,-1397.11908697,0.00011042,2]
[346829787,1735311053535,-282.06200302,0.00011042,2]
[346829788,1735311053547,-217.93799698,0.00011042,2]
[346829789,1735311053556,-319.98699664,0.00011042,2]
[346829790,1735311053567,-961.68300336,0.00011042,2]
[346829791,1735311053577,-500.0,0.00011042,2]
[346829792,1735311053586,-639.53,0.00011042,2]
[346829793,1735311053595,-500.0,0.00011042,2]
[346829794,1735311053605,-909.59,0.00011042,2]
[346829795,1735311053615,-1478.59,0.00011042,2]
[346829796,1735311053624,-500.0,0.00011042,2]
[346829797,1735311053634,-914.14,0.00011042,2]
[346829798,1735311053643,-610.78,0.00011042,2]
[346829799,1735311053653,-1086.46,0.00011042,2]
[346829800,1735311053662,-1124.58,0.00011042,2]
[346829801,1735311053671,-500.0,0.00011042,2]
[346829802,1735311053681,-500.0,0.00011042,2]
[346829803,1735311053690,-404.35828925,0.00011042,2]
[346829804,1735311053702,-166.26171075,0.00011042,2]
[346829805,1735311053711,-2150.0,0.00011042,2]
[346829806,1735311053721,-500.0,0.00011042,2]
[346829807,1735311053730,-500.0,0.00011042,2]
[346829808,1735311053739,-1242.01,0.00011042,2]
[346829809,1735311053751,-500.0,0.00011042,2]
[346829810,1735311053760,-500.0,0.00011042,2]
[346829811,1735311053770,-500.0,0.00011042,2]
[346829812,1735311053779,-682.72828919,0.00011042,2]
[346829813,1735311053799,-317.90171081,0.00011042,2]
[346829814,1735311053809,-500.0,0.00011042,2]
[346829815,1735311053818,-2073.0,0.00011042,2]
[346829816,1735311053828,-500.0,0.00011042,2]
[346829817,1735311053838,-500.0,0.00011042,2]
[346829818,1735311053851,-511.45450707,0.00011042,2]
[346829819,1735311053862,-1281.49549293,0.00011042,2]
[346829820,1735311053872,-1300.57,0.00011042,2]
[346829821,1735311053882,-500.0,0.00011042,2]
[346829822,1735311053891,-500.0,0.00011042,2]
[346829823,1735311053901,-500.0,0.00011042,2]
[346829824,1735311053910,-1684.61,0.00011042,2]
[346829825,1735311053920,-500.0,0.00011042,2]
[346829826,1735311053930,-826.96,0.00011042,2]
[346829827,1735311053939,-1144.51,0.00011042,2]
[346829828,1735311053949,-879.83,0.00011042,2]
[346829829,1735311053958,-1868.39,0.00011042,2]
[346829830,1735311053967,-556.48,0.00011042,2]
[346829831,1735311053976,-500.0,0.00011042,2]
[346829832,1735311053986,-500.0,0.00011042,2]
[346829833,1735311054000,-1529.54,0.00011042,2]
[346829834,1735311054010,-500.0,0.00011042,2]
[346829835,1735311054019,-259.93731452,0.00011042,2]
[346829839,1735311930847,533.65,8.219e-05,2]
[346829841,1735312051625,2000.0,0.0002,120]
[346829842,1735312072680,4442.29,0.00012022,10]
[346829843,1735312110039,3999.99,9.07e-05,2]
[346829844,1735312127752,1809.62668721,8.9e-05,2]
[346829845,1735312127773,10000.0,8.9e-05,2]
[346829846,1735312127794,10000.0,8.9e-05,2]
[346829847,1735312127826,1433633.49283661,8.9e-05,2]
[346829860,1735312231963,-789.21824153,9.569e-05,2]
[346829861,1735312232008,-1047.25879379,9.569e-05,2]
[346829862,1735312232020,-1155.59684031,9.569e-05,2]
[346829863,1735312232035,-1912.32410973,9.569e-05,2]
[346829864,1735312232046,-342.718814,9.569e-05,2]
[346829865,1735312232211,-6623.3605065,9.569e-05,2]
[346829866,1735312232224,-10424.40269414,9.569e-05,2]
[346829867,1735312232234,-158.87,9.648e-05,2]
[346829868,1735312232243,-250.0,9.717e-05,2]
[346829869,1735312232253,-302.42,9.774e-05,2]
[346829870,1735312232262,-250.0,9.788e-05,2]
[346829871,1735312232272,-22558.29351792,9.788e-05,2]
[346829872,1735312232284,-27441.70648208,9.788e-05,2]
[346829873,1735312232294,-250.0,9.848e-05,2]
[346829874,1735312232303,-807.18,9.882e-05,2]
[346829875,1735312232313,-560.49,9.896e-05,2]
[346829876,1735312232326,-218.16360643,9.917e-05,2]
[346829877,1735312232337,-1000.0,9.979e-05,2]
[346829878,1735312232347,-91627.95004365,0.0001,2]
[346829879,1735312232357,-352.06,0.00010137,2]
[346829880,1735312232367,-2700.0,0.00010302,2]
[346829881,1735312232377,-500.0,0.00010302,2]
[346829882,1735312232387,-437.31,0.000104,2]
[346829884,1735312232396,-771.1,0.000104,2]
[346829886,1735312232406,-771.1,0.000104,2]
[346829888,1735312232416,-437.31,0.000104,2]
[346829890,1735312232425,-4000.0,0.000104,3]
[346829892,1735312232434,-437.31,0.00010441,2]
[346829894,1735312232444,-533.65,0.00010462,2]
[346829896,1735312232454,-8000.0,0.000105,3]
[346829898,1735312232463,-978.01,0.00010548,2]
[346829900,1735312232472,-150.0,0.00010548,2]
[346829902,1735312232482,-150.0,0.000106,2]
[346829904,1735312232492,-771.1,0.000106,2]
[346829906,1735312232501,-978.01,0.000106,2]
[346829908,1735312232510,-437.31,0.000106,2]
[346829910,1735312232520,-150.0,0.000106,2]
[346829912,1735312232531,-436.3,0.000106,2]
[346829914,1735312232540,-12100.0,0.000106,3]
[346829916,1735312232550,-2140.1772,0.00010667,2]
[346829918,1735312232559,-1301.5825,0.00010669,2]
[346829920,1735312232569,-978.01,0.000107,2]
[346829922,1735312232578,-300.0,0.000107,2]
[346829925,1735312232588,-150.0,0.000107,2]
[346829927,1735312232598,-16100.0,0.000107,3]
[346829929,1735312232607,-500.0,0.00010763,2]
[346829931,1735312232616,-500.0,0.00010763,2]
[346829933,1735312232626,-1738.62,0.00010764,2]
[346829934,1735312232636,-500.0,0.00010764,2]
[346829937,1735312232645,-942.37,0.00010764,2]
[346829939,1735312232655,-2760.13,0.00010764,2]
[346829941,1735312232664,-2553.29,0.00010764,2]
[346829943,1735312232674,-1481.83,0.00010764,2]
[346829945,1735312232683,-2840.39,0.00010764,2]
[346829947,1735312232693,-5508.87,0.00010764,2]
[346829949,1735312232703,-2502.06,0.00010764,2]
[346829951,1735312232711,-3934.89,0.00010764,2]
[346829953,1735312232722,-44651.57,0.00010764,2]
[346829955,1735312232731,-1294.46,0.00010764,2]
[346829957,1735312232740,-4354.44,0.00010764,2]
[346829959,1735312232750,-1496.46,0.00010764,2]
[346829961,1735312232759,-799.92,0.00010764,2]
[346829962,1735312232768,-1918.43,0.00010764,2]
[346829964,1735312232780,-2756.43,0.00010764,2]
[346829966,1735312232789,-3302.0,0.00010764,2]
[346829968,1735312232799,-2394.57,0.00010764,2]
[346829969,1735312232808,-1229.83,0.00010764,2]
[346829970,1735312232818,-13057.41,0.00010764,2]
[346829971,1735312232830,-4337.55,0.00010764,2]
[346829972,1735312232840,-1308.02,0.00010764,2]
[346829973,1735312232850,-2243.7,0.00010764,2]
[346829974,1735312232859,-3089.12,0.00010764,2]
[346829975,1735312232869,-500.0,0.00010764,2]
[346829976,1735312232879,-867.66,0.00010764,2]
[346829977,1735312232888,-7370.07,0.00010764,2]
[346829978,1735312232897,-152.363359,0.00010764,2]
[346829979,1735312232907,-2024.39532,0.00010764,2]
[346829980,1735312232917,-3030.64,0.00010764,2]
[346829981,1735312232926,-1958.33922,0.00010764,2]
[346829982,1735312232937,-5230.93,0.00010764,2]
[346829983,1735312232947,-1377.48,0.00010764,2]
[346829984,1735312232956,-16789.3,0.00010764,2]
[346829985,1735312232965,-2423.45,0.00010764,2]
[346829986,1735312232975,-2841.3,0.00010764,2]
[346829987,1735312232984,-2341.61,0.00010764,2]
[346829988,1735312232993,-5275.26,0.00010764,2]
[346829989,1735312233003,-630.03,0.00010764,2]
[346829990,1735312233012,-500.0,0.00010764,2]
[346829991,1735312233024,-696.96,0.00010764,2]
[346829992,1735312233034,-2462.25,0.00010764,2]
[346829993,1735312233044,-500.0,0.00010764,2]
[346829994,1735312233054,-725.79539594,0.00010765,3]
[346829995,1735312233064,-500.0,0.00010765,2]
[346829996,1735312233074,-500.0,0.00010765,2]
[346829997,1735312233084,-500.0,0.00010765,2]
[346829998,1735312233094,-500.0,0.00010765,2]
[346829999,1735312233103,-500.0,0.00010765,2]
[346830000,1735312233113,-647.54,0.00010765,2]
[346830001,1735312233123,-500.0,0.00010765,2]
[346830002,1735312233133,-500.0,0.00010765,2]
[346830003,1735312233143,-500.0,0.00010765,2]
[346830004,1735312233152,-753.57,0.00010765,2]
[346830005,1735312233162,-500.0,0.00010765,2]
[346830006,1735312233172,-500.0,0.00010765,2]
[346830007,1735312233182,-1698.38,0.00010765,2]
[346830008,1735312233192,-500.0,0.00010765,2]
[346830009,1735312233201,-500.0,0.00010765,2]
[346830010,1735312233211,-500.0,0.00010765,2]
[346830011,1735312233221,-500.0,0.00010765,2]
[346830012,1735312233231,-1607.08,0.00010765,2]
[346830013,1735312233240,-500.0,0.00010765,2]
[346830014,1735312233250,-648.77,0.00010765,2]
[346830015,1735312233261,-500.0,0.00010765,2]
[346830016,1735312233270,-325.29176594,0.00010765,2]
[346830017,1735312233281,-500.0,0.00010765,2]
[346830018,1735312233291,-500.0,0.00010765,2]
[346830019,1735312233301,-500.0,0.00010765,2]
[346830020,1735312233311,-500.0,0.00010765,2]
[346830021,1735312233321,-500.0,0.00010765,2]
[346830022,1735312233330,-500.0,0.00010765,2]
[346830023,1735312233340,-942.24,0.00010765,2]
[346830024,1735312233350,-577.31,0.00010765,2]
[346830025,1735312233359,-500.0,0.00010765,2]
[346830026,1735312233369,-500.0,0.00010765,2]
[346830027,1735312233379,-500.0,0.00010765,2]
[346830028,1735312233388,-500.0,0.00010765,2]
[346830029,1735312233398,-624.4938911,0.00010765,2]
[346830030,1735312233408,-500.0,0.00010765,2]
[346830031,1735312233418,-500.0,0.00010765,2]
[346830032,1735312233427,-500.0,0.00010765,2]
[346830033,1735312233438,-500.0,0.00010765,2]
[346830034,1735312233448,-1119.19,0.00010765,2]
[346830035,1735312233458,-500.0,0.00010765,2]
[346830036,1735312233467,-500.0,0.00010765,2]
[346830037,1735312233477,-818.79,0.00010765,2]
[346830038,1735312233487,-500.0,0.00010765,2]
[346830039,1735312233497,-528.21,0.00010765,2]
[346830040,1735312233506,-500.0,0.00010765,2]
[346830041,1735312233516,-500.0,0.00010765,2]
[346830042,1735312233526,-563.0,0.00010765,2]
[346830043,1735312233536,-740.59,0.00010765,2]
[346830044,1735312233546,-500.0,0.00010765,2]
[346830045,1735312233556,-841.4,0.00010765,2]
[346830046,1735312233566,-500.0,0.00010765,2]
[346830047,1735312233576,-774.45,0.00010765,2]
[346830048,1735312233585,-1579.32,0.00010765,2]
[346830049,1735312233595,-500.0,0.00010765,2]
[346830050,1735312233606,-500.0,0.00010765,2]
[346830051,1735312233616,-500.0,0.00010765,2]
[346830052,1735312233626,-500.0,0.00010765,2]
[346830053,1735312233635,-1077.91,0.00010765,2]
[346830054,1735312233646,-949.93,0.00010765,2]
[346830055,1735312233655,-500.0,0.00010765,2]
[346830056,1735312233665,-1228.81,0.00010765,2]
[346830057,1735312233675,-526.79835638,0.00010765,2]
[346830058,1735312233685,-584.93933268,0.00010765,2]
[346830059,1735312233695,-500.0,0.00010765,2]
[346830060,1735312233705,-1402.7,0.00010765,2]
[346830061,1735312233715,-500.0,0.00010765,2]
[346830062,1735312233725,-553.23,0.00010765,2]
[346830063,1735312233735,-500.0,0.00010765,2]
[346830064,1735312233745,-927.43,0.00010765,2]
[346830065,1735312233754,-500.0,0.00010765,2]
[346830066,1735312233764,-346.48879547,0.00010765,2]
[346830067,1735312233775,-500.0,0.00010765,2]
[346830068,1735312233784,-500.0,0.00010765,2]
[346830069,1735312233794,-500.0,0.00010765,2]
[346830070,1735312233804,-500.0,0.00010765,2]
[346830071,1735312233814,-824.45,0.00010765,2]
[346830072,1735312233824,-500.0,0.00010765,2]
[346830073,1735312233835,-500.0,0.00010765,2]
[346830074,1735312233848,-500.0,0.00010765,2]
[346830075,1735312233858,-500.0,0.00010765,2]
[346830076,1735312233867,-500.0,0.00010765,2]
[346830077,1735312233879,-500.0,0.00010765,2]
[346830078,1735312233889,-595.06,0.00010765,2]
[346830079,1735312233899,-500.0,0.00010765,2]
[346830080,1735312233909,-502.9636083,0.00010765,2]
[346830081,1735312233921,-500.0,0.00010765,2]
[346830082,1735312233932,-500.0,0.00010765,2]
[346830083,1735312233942,-500.0,0.00010765,2]
[346830084,1735312233951,-500.0,0.00010765,2]
[346830085,1735312233961,-774.16,0.00010765,2]
[346830086,1735312233971,-500.0,0.00010765,2]
[346830087,1735312233982,-500.0,0.00010765,2]
[346830088,1735312233992,-500.0,0.00010765,2]
[346830089,1735312234002,-500.0,0.00010765,2]
[346830090,1735312234013,-500.0,0.00010765,2]
[346830091,1735312234025,-500.0,0.00010765,2]
[346830092,1735312234035,-524.66,0.00010765,2]
[346830093,1735312234045,-888.33,0.00010765,2]
[346830094,1735312234055,-500.0,0.00010765,2]
[346830095,1735312234065,-1271.95,0.00010765,2]
[346830096,1735312234076,-1254.6,0.00010765,2]
[346830097,1735312234086,-500.0,0.00010765,2]
[346830098,1735312234096,-500.0,0.00010765,2]
[346830099,1735312234106,-500.0,0.00010765,2]
[346830100,1735312234116,-500.0,0.00010765,2]
[346830101,1735312234126,-571.04,0.00010765,2]
[346830102,1735312234136,-500.0,0.00010765,2]
[346830103,1735312234146,-726.94,0.00010765,2]
[346830104,1735312234156,-500.0,0.00010765,2]
[346830105,1735312234166,-500.0,0.00010765,2]
[346830106,1735312234176,-500.0,0.00010765,2]
[346830107,1735312234185,-1254.62,0.00010765,2]
[346830108,1735312234195,-1490.89,0.00010765,2]
[346830109,1735312234205,-500.0,0.00010765,2]
[346830110,1735312234215,-500.0,0.00010765,2]
[346830111,1735312234224,-500.0,0.00010765,2]
[346830112,1735312234234,-500.0,0.00010765,2]
[346830113,1735312234243,-500.0,0.00010765,2]
[346830114,1735312234253,-500.0,0.00010765,2]
[346830115,1735312234263,-1345.19,0.00010765,2]
[346830116,1735312234275,-500.0,0.00010765,2]
[346830117,1735312234285,-500.0,0.00010765,2]
[346830118,1735312234295,-500.0,0.00010765,2]
[346830119,1735312234305,-644.48,0.00010765,2]
[346830120,1735312234315,-693.38,0.00010765,2]
[346830121,1735312234325,-500.0,0.00010765,2]
[346830122,1735312234335,-851.52,0.00010765,2]
[346830123,1735312234345,-500.0,0.00010765,2]
[346830124,1735312234355,-500.0,0.00010765,2]
[346830125,1735312234365,-500.0,0.00010765,2]
[346830126,1735312234375,-578.38,0.00010765,2]
[346830127,1735312234385,-500.0,0.00010765,2]
[346830128,1735312234395,-500.0,0.00010765,2]
[346830129,1735312234405,-500.0,0.00010765,2]
[346830130,1735312234415,-500.0,0.00010765,2]
[346830131,1735312234426,-500.0,0.00010765,2]
[346830132,1735312234436,-952.02,0.00010765,2]
[346830133,1735312234446,-1367.09,0.00010765,2]
[346830134,1735312234456,-554.09,0.00010765,2]
[346830135,1735312234465,-500.0,0.00010765,2]
[346830136,1735312234475,-500.0,0.00010765,2]
[346830137,1735312234485,-500.0,0.00010765,2]
[346830138,1735312234494,-500.0,0.00010765,2]
[346830139,1735312234504,-500.0,0.00010765,2]
[346830140,1735312234514,-500.0,0.00010765,2]
[346830141,1735312234525,-512.96,0.00010765,2]
[346830142,1735312234535,-500.0,0.00010765,2]
[346830143,1735312234545,-500.0,0.00010765,2]
[346830144,1735312234555,-631.56792856,0.00010765,2]
[346830145,1735312234565,-500.0,0.00010765,2]
[346830146,1735312234575,-500.0,0.00010765,2]
[346830147,1735312234585,-500.0,0.00010765,2]
[346830148,1735312234594,-779.82,0.00010765,2]
[346830149,1735312234603,-500.0,0.00010765,2]
[346830150,1735312234613,-808.45,0.00010765,2]
[346830151,1735312234622,-500.0,0.00010765,2]
[346830152,1735312234632,-1384.97,0.00010765,2]
[346830153,1735312234642,-1795.2,0.00010765,2]
[346830154,1735312234652,-500.0,0.00010765,2]
[346830155,1735312234662,-668.63,0.00010765,2]
[346830156,1735312234672,-523.4,0.00010765,2]
[346830157,1735312234682,-500.0,0.00010765,2]
[346830158,1735312234691,-833.66,0.00010765,2]
[346830159,1735312234701,-1047.37,0.00010765,2]
[346830160,1735312234711,-500.0,0.00010765,2]
[346830161,1735312234720,-2333.28,0.00010765,2]
[346830162,1735312234730,-500.0,0.00010765,2]
[346830163,1735312234739,-560.7,0.00010765,2]
[346830164,1735312234749,-600.57,0.00010765,2]
[346830165,1735312234758,-500.0,0.00010765,2]
[346830166,1735312234767,-1756.46,0.00010765,2]
[346830167,1735312234779,-500.0,0.00010765,2]
[346830168,1735312234789,-500.0,0.00010765,2]
[346830169,1735312234798,-500.0,0.00010765,2]
[346830170,1735312234808,-12557.18,0.00010765,2]
[346830171,1735312234818,-1423.09,0.00010765,2]
[346830172,1735312234828,-633.09,0.00010765,2]
[346830173,1735312234842,-391.20023309,0.00010765,2]
[346830174,1735312234851,-500.0,0.00010765,2]
[346830175,1735312234861,-500.0,0.00010765,2]
[346830176,1735312234871,-500.0,0.00010765,2]
[346830177,1735312234882,-500.0,0.00010765,2]
[346830178,1735312234892,-1742.13,0.00010765,2]
[346830179,1735312234901,-500.0,0.00010765,2]
[346830180,1735312234911,-500.0,0.00010765,2]
[346830181,1735312234921,-500.0,0.00010765,2]
[346830182,1735312234930,-2409.78,0.00010765,2]
[346830183,1735312234939,-889.78,0.00010765,2]
[346830184,1735312234949,-500.0,0.00010765,2]
[346830185,1735312234959,-713.15,0.00010765,2]
[346830186,1735312234968,-513.50651016,0.00010765,2]
[346830187,1735312234978,-500.0,0.00010765,2]
[346830188,1735312234988,-500.0,0.00010765,2]
[346830189,1735312234997,-1306.55,0.00010765,2]
[346830190,1735312235007,-500.0,0.00010765,2]
[346830191,1735312235016,-3373.89,0.00010765,2]
[346830192,1735312235028,-500.0,0.00010765,2]
[346830193,1735312235038,-500.0,0.00010765,2]
[346830194,1735312235047,-500.0,0.00010765,2]
[346830195,1735312235056,-500.0,0.00010765,2]
[346830196,1735312235066,-655.25,0.00010765,2]
[346830197,1735312235075,-500.0,0.00010765,2]
[346830198,1735312235085,-500.0,0.00010765,2]
[346830199,1735312235095,-501.94,0.00010765,2]
[346830200,1735312235104,-626.67,0.00010765,2]
[346830201,1735312235114,-500.0,0.00010765,2]
[346830202,1735312235124,-2840.57,0.00010765,2]
[346830203,1735312235133,-846.4,0.00010765,2]
[346830204,1735312235142,-1521.96,0.00010765,2]
[346830205,1735312235151,-500.0,0.00010765,2]
[346830206,1735312235160,-834.95,0.00010765,2]
[346830207,1735312235170,-907.59,0.00010765,2]
[346830208,1735312235179,-500.0,0.00010765,2]
[346830209,1735312235188,-679.96,0.00010765,2]